[Event "NJSK 2022 Meisjes C"]
[Site "Almelo, Netherlands"]
[Date "2022.05.05"]
[Round "5.2"]
[White "Westerhof, Fleur"]
[Black "Knobbe, Elise"]
[Result "1-0"]
[TimeControl "90min/40moves + 30min + 30sec/move"]
[WhiteElo "1509"]
[BlackElo "1553"]

1. e4 {[%clk 01:30:57]} {[%emt 00:00:03]} c5 {[%clk 01:30:56]} {[%emt
00:00:05]} 2. Nf3 {[%clk 01:31:17]} {[%emt 00:00:09]} Nc6 {[%clk 01:31:15]}
{[%emt 00:00:11]} 3. d4 {[%clk 01:31:32]} {[%emt 00:00:15]} cxd4 {[%clk
01:31:34]} {[%emt 00:00:11]} 4. Nxd4 {[%clk 01:31:51]} {[%emt 00:00:11]} g6
{[%clk 01:31:53]} {[%emt 00:00:11]} 5. c4 {[%clk 01:31:56]} {[%emt 00:00:25]}
Bg7 {[%clk 01:31:20]} {[%emt 00:01:02]} 6. Be3 {[%clk 01:31:51]} {[%emt
00:00:36]} Nf6 {[%clk 01:31:07]} {[%emt 00:00:43]} 7. Nc3 {[%clk 01:30:30]}
{[%emt 00:01:51]} d6 {[%clk 01:24:54]} {[%emt 00:06:43]} 8. Be2 {[%clk
01:21:36]} {[%emt 00:09:24]} Bd7 {[%clk 01:22:22]} {[%emt 00:03:03]} 9. O-O
{[%emt 00:02:51]} O-O {[%clk 01:22:30]} 10. f3 {[%clk 01:18:30]} {[%emt
00:01:35]} a6 {[%clk 01:18:47]} {[%emt 00:04:13]} 11. Qd2 {[%clk 01:13:59]}
{[%emt 00:05:01]} Re8 {[%clk 01:16:55]} {[%emt 00:02:22]} 12. Rfd1 {[%clk
01:09:21]} {[%emt 00:05:08]} Qc7 {[%clk 01:13:35]} {[%emt 00:03:47]} 13. Rac1
{[%clk 01:08:23]} {[%emt 00:01:30]} Ne5 {[%clk 01:07:49]} {[%emt 00:06:15]} 14.
Nd5 {[%clk 01:04:44]} {[%emt 00:04:11]} Qd8 {[%clk 01:05:55]} {[%emt 00:02:23]}
15. Nb3 {[%clk 00:57:18]} {[%emt 00:07:56]} Nxd5 {[%clk 01:04:59]} {[%emt
00:01:27]} 16. cxd5 {[%clk 00:53:33]} {[%emt 00:04:15]} Ba4 {[%clk 01:00:32]}
{[%emt 00:04:55]} 17. Qb4 {[%clk 00:48:36]} {[%emt 00:05:28]} Bxb3 {[%clk
00:59:21]} {[%emt 00:01:41]} 18. Qxb3 {[%clk 00:48:32]} {[%emt 00:00:34]} Qd7
{[%clk 00:57:00]} {[%emt 00:02:50]} 19. Rc2 {[%clk 00:43:42]} {[%emt 00:05:21]}
b5 {[%clk 00:51:19]} {[%emt 00:06:11]} 20. Rdc1 {[%clk 00:42:07]} {[%emt
00:02:05]} Rec8 {[%clk 00:50:55]} {[%emt 00:00:53]} 21. Qa3 {[%clk 00:34:45]}
{[%emt 00:07:53]} Qb7 {[%clk 00:48:55]} {[%emt 00:02:28]} 22. b3 {[%clk
00:32:20]} {[%emt 00:02:57]} Rxc2 {[%clk 00:47:15]} {[%emt 00:02:09]} 23. Rxc2
{[%clk 00:32:38]} {[%emt 00:00:12]} Rc8 {[%clk 00:47:31]} {[%emt 00:00:15]} 24.
Qc1 {[%clk 00:32:53]} {[%emt 00:00:14]} Rxc2 {[%clk 00:47:11]} {[%emt
00:00:51]} 25. Qxc2 {[%clk 00:33:12]} {[%emt 00:00:11]} h5 {[%clk 00:41:14]}
{[%emt 00:06:26]} 26. h3 {[%clk 00:31:17]} {[%emt 00:02:26]} Bf6 {[%clk
00:32:56]} {[%emt 00:08:47]} 27. f4 {[%clk 00:29:55]} {[%emt 00:01:52]} Nd7
{[%clk 00:32:57]} {[%emt 00:00:30]} 28. Qc6 {[%clk 00:30:00]} {[%emt 00:00:24]}
Qxc6 {[%clk 00:29:15]} {[%emt 00:04:12]} 29. dxc6 {[%emt 00:01:16]} 1-0

[Event "NJSK 2022 Meisjes C"]
[Site "Almelo, Netherlands"]
[Date "2022.05.05"]
[Round "5.3"]
[White "Gergin, Isafara"]
[Black "Liu, Chia-Yun"]
[Result "1/2-1/2"]
[TimeControl "90min/40moves + 30min + 30sec/move"]
[WhiteElo "1723"]
[BlackElo "1148"]

1. e4 {[%clk 01:30:58]} {[%emt 00:00:04]} e5 {[%clk 01:30:55]} {[%emt
00:00:03]} 2. Nf3 {[%clk 01:31:22]} {[%emt 00:00:05]} Nc6 {[%clk 01:31:19]}
{[%emt 00:00:07]} 3. Bc4 {[%clk 01:31:48]} {[%emt 00:00:04]} Bc5 {[%clk
01:31:43]} {[%emt 00:00:06]} 4. c3 {[%clk 01:32:14]} {[%emt 00:00:04]} Nf6
{[%clk 01:32:07]} {[%emt 00:00:05]} 5. d3 {[%clk 01:32:36]} {[%emt 00:00:08]}
d6 {[%clk 01:32:19]} {[%emt 00:00:18]} 6. Bb3 {[%clk 01:32:56]} {[%emt
00:00:11]} O-O {[%clk 01:32:23]} {[%emt 00:00:26]} 7. h3 {[%clk 01:33:02]}
{[%emt 00:00:24]} Be6 {[%clk 01:32:18]} {[%emt 00:00:35]} 8. Bc2 {[%clk
01:32:50]} {[%emt 00:00:42]} h6 {[%clk 01:31:23]} {[%emt 00:01:25]} 9. Nbd2
{[%clk 01:32:27]} {[%emt 00:00:53]} d5 {[%clk 01:29:41]} {[%emt 00:02:12]} 10.
Qe2 {[%clk 01:31:19]} {[%emt 00:01:38]} d4 {[%clk 01:27:05]} {[%emt 00:03:06]}
11. Nf1 {[%clk 01:26:10]} {[%emt 00:05:38]} Qd7 {[%clk 01:25:22]} {[%emt
00:02:14]} 12. Ng3 {[%clk 01:23:11]} {[%emt 00:03:29]} dxc3 {[%clk 01:23:39]}
{[%emt 00:02:12]} 13. bxc3 {[%clk 01:21:59]} {[%emt 00:01:42]} Rad8 {[%clk
01:22:39]} {[%emt 00:01:31]} 14. O-O {[%clk 01:11:48]} {[%emt 00:10:40]} Rfe8
{[%clk 01:20:41]} {[%emt 00:02:29]} 15. Be3 {[%clk 01:08:49]} {[%emt 00:03:29]}
Bd6 {[%clk 01:08:43]} {[%emt 00:12:28]} 16. Nh4 {[%clk 01:03:50]} {[%emt
00:05:28]} b6 {[%clk 01:04:46]} {[%emt 00:04:27]} 17. Qf3 {[%clk 00:50:37]}
{[%emt 00:13:43]} Ne7 {[%clk 00:59:59]} {[%emt 00:05:18]} 18. Bb3 {[%clk
00:43:28]} {[%emt 00:07:40]} Bxh3 {[%clk 00:47:22]} {[%emt 00:13:06]} 19. gxh3
{[%clk 00:39:22]} {[%emt 00:04:35]} Qxh3 {[%clk 00:47:33]} {[%emt 00:00:19]} 20.
Ngf5 {[%clk 00:36:38]} {[%emt 00:03:14]} Qxf3 {[%clk 00:43:13]} {[%emt
00:04:51]} 21. Nxe7+ {[%clk 00:36:42]} {[%emt 00:00:25]} Rxe7 {[%clk 00:40:49]}
{[%emt 00:02:54]} 22. Nxf3 {[%clk 00:36:57]} {[%emt 00:00:15]} Nh5 {[%clk
00:39:40]} {[%emt 00:01:38]} 23. Kh1 {[%clk 00:32:01]} {[%emt 00:05:26]} Nf4
{[%clk 00:37:45]} {[%emt 00:02:25]} 24. Rg1 {[%clk 00:22:09]} {[%emt 00:10:22]}
Kh7 {[%clk 00:36:16]} {[%emt 00:01:59]} 25. Rg4 {[%clk 00:16:43]} {[%emt
00:05:56]} Nxd3 {[%clk 00:32:31]} {[%emt 00:04:16]} 26. Rag1 {[%clk 00:11:42]}
{[%emt 00:05:31]} g6 {[%clk 00:31:12]} {[%emt 00:01:49]} 27. Rh4 {[%clk
00:10:10]} {[%emt 00:02:01]} Nf4 {[%clk 00:28:41]} {[%emt 00:03:01]} 28. Ng5+
{[%clk 00:07:19]} {[%emt 00:03:21]} Kg7 {[%clk 00:28:02]} {[%emt 00:01:09]} 29.
Nh3 {[%clk 00:04:46]} {[%emt 00:03:03]} Rh8 {[%clk 00:26:04]} {[%emt 00:02:28]}
30. Nxf4 {[%clk 00:04:06]} {[%emt 00:01:10]} exf4 {[%clk 00:26:05]} {[%emt
00:00:29]} 31. Bd4+ {[%clk 00:03:51]} {[%emt 00:00:45]} Be5 {[%clk 00:25:45]}
{[%emt 00:00:50]} 32. Rxf4 {[%clk 00:02:44]} {[%emt 00:01:37]} Bxd4 {[%clk
00:25:09]} {[%emt 00:01:06]} 33. cxd4 {[%clk 00:03:06]} {[%emt 00:00:08]} h5
{[%clk 00:23:15]} {[%emt 00:02:25]} 34. Rg3 {[%clk 00:02:16]} {[%emt 00:01:20]}
Rf8 {[%clk 00:22:09]} {[%emt 00:01:37]} 35. Rgf3 {[%clk 00:01:57]} {[%emt
00:00:48]} a5 {[%clk 00:20:46]} {[%emt 00:01:53]} 36. e5 {[%clk 00:02:03]}
{[%emt 00:00:25]} c6 {[%clk 00:20:00]} {[%emt 00:01:16]} 37. Rf6 {[%clk
00:01:54]} {[%emt 00:00:38]} c5 {[%clk 00:19:08]} {[%emt 00:01:22]} 38. d5
{[%clk 00:01:36]} {[%emt 00:00:48]} Rxe5 {[%clk 00:19:05]} {[%emt 00:00:33]} 39.
Rxb6 {[%clk 00:01:38]} {[%emt 00:00:28]} Rc8 {[%clk 00:18:16]} {[%emt
00:01:19]} 40. Rc6 {[%clk 00:01:22]} {[%emt 00:00:47]} Rxc6 {[%clk 00:17:05]}
{[%emt 00:01:41]} 41. dxc6 {[%clk 00:01:46]} {[%emt 00:00:06]} c4 {[%clk
00:16:58]} {[%emt 00:00:37]} 42. Ba4 {[%clk 00:23:41]} {[%emt 00:08:35]} Rc5
{[%clk 00:46:18]} {[%emt 00:01:10]} 43. Rc3 {[%clk 00:21:42]} {[%emt 00:02:29]}
f5 {[%clk 00:44:18]} {[%emt 00:02:29]} 44. Kg2 {[%clk 00:20:34]} {[%emt
00:01:39]} Kf6 {[%clk 00:42:58]} {[%emt 00:01:49]} 45. f4 {[%clk 00:18:05]}
{[%emt 00:02:59]} g5 {[%clk 00:41:35]} {[%emt 00:01:53]} 46. Kg3 {[%clk
00:15:17]} {[%emt 00:03:18]} gxf4+ {[%clk 00:38:49]} {[%emt 00:03:16]} 47. Kxf4
{[%clk 00:15:20]} {[%emt 00:00:28]} h4 {[%clk 00:38:58]} {[%emt 00:00:20]} 48.
Rh3 {[%clk 00:10:22]} {[%emt 00:05:28]} c3 {[%clk 00:37:48]} {[%emt 00:01:40]}
49. Rh2 {[%clk 00:08:39]} {[%emt 00:02:13]} Rc4+ {[%clk 00:30:19]} {[%emt
00:08:00]} 50. Ke3 {[%clk 00:08:41]} {[%emt 00:00:26]} Rxa4 {[%clk 00:30:13]}
{[%emt 00:00:38]} 51. Kd3 {[%clk 00:08:56]} {[%emt 00:00:14]} Ke6 {[%clk
00:27:52]} {[%emt 00:02:51]} 52. Kxc3 {[%clk 00:06:46]} {[%emt 00:02:40]} Kd6
{[%clk 00:27:40]} {[%emt 00:00:42]} 53. Kb3 {[%clk 00:06:44]} {[%emt 00:00:33]}
Rb4+ {[%clk 00:27:17]} {[%emt 00:00:53]} 54. Kc2 {[%clk 00:05:53]} {[%emt
00:01:21]} Kxc6 {[%clk 00:27:33]} {[%emt 00:00:15]} 55. Rf2 {[%clk 00:06:03]}
{[%emt 00:00:20]} f4 {[%clk 00:26:26]} {[%emt 00:01:36]} 56. Rf3 {[%clk
00:06:06]} {[%emt 00:00:27]} Kb5 {[%clk 00:25:21]} {[%emt 00:01:36]} 57. Rh3
{[%clk 00:05:18]} {[%emt 00:01:18]} Kc5 {[%clk 00:22:03]} {[%emt 00:03:48]} 58.
Rxh4 {[%clk 00:04:02]} {[%emt 00:01:45]} f3 {[%clk 00:22:00]} {[%emt 00:00:33]}
59. Rh5+ {[%clk 00:02:38]} {[%emt 00:01:54]} Kd4 {[%clk 00:20:38]} {[%emt
00:01:52]} 60. Kd2 {[%clk 00:01:39]} {[%emt 00:01:30]} Rb2+ {[%clk 00:20:14]}
{[%emt 00:00:54]} 61. Ke1 {[%clk 00:01:47]} {[%emt 00:00:22]} Rxa2 {[%clk
00:19:04]} {[%emt 00:01:40]} 62. Kf1 {[%clk 00:01:49]} {[%emt 00:00:27]} a4
{[%clk 00:18:42]} {[%emt 00:00:53]} 63. Rh8 {[%clk 00:02:00]} {[%emt 00:00:19]}
Kd3 {[%clk 00:17:16]} {[%emt 00:01:55]} 64. Rd8+ {[%clk 00:02:11]} {[%emt
00:00:22]} Kc2 {[%clk 00:17:24]} {[%emt 00:00:22]} 65. Kf2 {[%clk 00:01:58]}
{[%emt 00:00:44]} Ra3 {[%clk 00:17:31]} {[%emt 00:00:22]} 66. Ra8 {[%clk
00:01:43]} {[%emt 00:00:45]} Kb1 {[%clk 00:16:54]} {[%emt 00:01:08]} 67. Ra7
{[%clk 00:01:21]} {[%emt 00:00:52]} Ra2+ {[%clk 00:14:56]} {[%emt 00:02:28]} 68.
Kxf3 {[%clk 00:01:31]} {[%emt 00:00:19]} Kb2 {[%clk 00:14:41]} {[%emt
00:00:45]} 69. Ke3 {[%clk 00:01:31]} {[%emt 00:00:31]} Ka3 {[%clk 00:14:53]}
{[%emt 00:00:17]} 70. Kd3 {[%clk 00:01:32]} {[%emt 00:00:29]} Rb2 {[%clk
00:14:50]} {[%emt 00:00:33]} 71. Kc3 {[%clk 00:01:36]} {[%emt 00:00:26]} Rb3
{[%clk 00:14:20]} {[%emt 00:00:54]} 72. Kc2 {[%clk 00:01:39]} {[%emt 00:00:33]}
Rg3 {[%clk 00:13:09]} {[%emt 00:01:41]} 73. Ra8 {[%clk 00:01:31]} {[%emt
00:00:38]} Rg4 {[%clk 00:13:00]} {[%emt 00:00:39]} 74. Rb8 {[%clk 00:01:30]}
{[%emt 00:00:31]} Ka2 {[%clk 00:10:54]} {[%emt 00:02:36]} 75. Rb2+ {[%clk
00:01:51]} {[%emt 00:00:10]} Ka1 {[%clk 00:10:47]} {[%emt 00:00:36]} 76. Rb1+
{[%clk 00:02:16]} {[%emt 00:00:06]} Ka2 {[%clk 00:11:09]} {[%emt 00:00:07]} 77.
Rb2+ {[%clk 00:02:43]} {[%emt 00:00:03]} Ka3 {[%clk 00:11:32]} {[%emt
00:00:08]} 78. Rb8 {[%clk 00:02:55]} {[%emt 00:00:18]} Rc4+ {[%clk 00:11:11]}
{[%emt 00:00:50]} 79. Kb1 {[%clk 00:02:09]} {[%emt 00:01:17]} Rc3 {[%clk
00:10:41]} {[%emt 00:01:00]} 80. Ka1 {[%clk 00:01:30]} {[%emt 00:01:08]} Rb3
{[%clk 00:10:32]} {[%emt 00:00:39]} 81. Ra8 {[%clk 00:01:18]} {[%emt 00:00:42]}
Rb4 {[%clk 00:10:36]} {[%emt 00:00:26]} 82. Rh8 {[%clk 00:01:09]} {[%emt
00:00:39]} 1/2-1/2

[Event "NJSK 2022 Meisjes C"]
[Site "Almelo, Netherlands"]
[Date "2022.05.05"]
[Round "5.4"]
[White "Damen, Josephine"]
[Black "Roebers, Bregje"]
[Result "1-0"]
[TimeControl "90min/40moves + 30min + 30sec/move"]
[WhiteElo "1600"]
[BlackElo "1214"]

1. e4 {[%clk 01:30:57]} {[%emt 00:00:04]} e5 {[%clk 01:30:49]} {[%emt
00:00:10]} 2. Nf3 {[%clk 01:31:21]} {[%emt 00:00:06]} d5 {[%clk 01:31:03]}
{[%emt 00:00:16]} 3. exd5 {[%clk 01:30:13]} {[%emt 00:01:39]} e4 {[%clk
01:30:12]} {[%emt 00:01:21]} 4. Qe2 {[%clk 01:27:23]} {[%emt 00:03:19]} Qe7
{[%clk 01:26:10]} {[%emt 00:04:31]} 5. Nd4 {[%clk 01:24:54]} {[%emt 00:03:00]}
Nf6 {[%clk 01:23:48]} {[%emt 00:02:52]} 6. Nc3 {[%clk 01:22:59]} {[%emt
00:02:24]} Qe5 {[%clk 01:19:19]} {[%emt 00:04:59]} 7. Nb3 {[%clk 01:17:38]}
{[%emt 00:05:52]} Bd6 {[%clk 01:13:13]} {[%emt 00:06:37]} 8. d3 {[%clk
00:56:38]} {[%emt 00:21:29]} exd3 {[%clk 01:11:27]} {[%emt 00:02:16]} 9. cxd3
{[%clk 00:56:31]} {[%emt 00:00:37]} O-O {[%clk 01:09:43]} {[%emt 00:02:14]} 10.
Qxe5 {[%clk 00:53:37]} {[%emt 00:03:23]} Bxe5 {[%clk 01:10:04]} {[%emt
00:00:09]} 11. d4 {[%clk 00:53:43]} {[%emt 00:00:25]} Bd6 {[%clk 01:10:20]}
{[%emt 00:00:15]} 12. Bg5 {[%clk 00:49:45]} {[%emt 00:04:27]} Bb4 {[%clk
01:06:31]} {[%emt 00:04:19]} 13. Bxf6 {[%clk 00:48:23]} {[%emt 00:01:51]} Bxc3+
{[%clk 01:06:46]} {[%emt 00:00:15]} 14. bxc3 {[%clk 00:48:47]} {[%emt
00:00:07]} gxf6 {[%clk 01:06:56]} {[%emt 00:00:20]} 15. Kd2 {[%clk 00:47:10]}
{[%emt 00:02:06]} Nd7 {[%clk 01:02:33]} {[%emt 00:04:53]} 16. Re1 {[%clk
00:44:27]} {[%emt 00:03:13]} Nb6 {[%clk 00:58:46]} {[%emt 00:04:18]} 17. c4
{[%clk 00:42:54]} {[%emt 00:02:03]} c6 {[%clk 00:55:42]} {[%emt 00:03:34]} 18.
dxc6 {[%clk 00:42:12]} {[%emt 00:01:13]} bxc6 {[%clk 00:56:01]} {[%emt
00:00:10]} 19. Bd3 {[%clk 00:34:43]} {[%emt 00:07:59]} Be6 {[%clk 00:51:29]}
{[%emt 00:05:02]} 20. c5 {[%clk 00:33:15]} {[%emt 00:01:58]} Bxb3 {[%clk
00:50:52]} {[%emt 00:01:06]} 21. axb3 {[%clk 00:33:28]} {[%emt 00:00:18]} Nd5
{[%clk 00:49:39]} {[%emt 00:01:43]} 22. Re4 {[%clk 00:31:25]} {[%emt 00:02:33]}
h6 {[%clk 00:43:10]} {[%emt 00:06:59]} 23. g4 {[%clk 00:28:24]} {[%emt
00:03:32]} Rab8 {[%clk 00:41:42]} {[%emt 00:01:58]} 24. Bc4 {[%clk 00:28:00]}
{[%emt 00:00:53]} a5 {[%clk 00:40:42]} {[%emt 00:01:30]} 25. Ra1 {[%clk
00:27:06]} {[%emt 00:01:24]} Ra8 {[%clk 00:40:03]} {[%emt 00:01:09]} 26. Bxd5
{[%clk 00:26:51]} {[%emt 00:00:45]} cxd5 {[%clk 00:40:16]} {[%emt 00:00:17]} 27.
Rf4 {[%clk 00:26:08]} {[%emt 00:01:12]} Kg7 {[%clk 00:40:05]} {[%emt 00:00:42]}
28. Rf5 {[%clk 00:25:42]} {[%emt 00:00:55]} Rfd8 {[%clk 00:40:23]} {[%emt
00:00:13]} 29. Kc3 {[%clk 00:24:42]} {[%emt 00:01:30]} Ra7 {[%clk 00:38:02]}
{[%emt 00:02:51]} 30. h3 {[%clk 00:19:37]} {[%emt 00:05:34]} Rdd7 {[%clk
00:35:51]} {[%emt 00:02:41]} 31. Kd3 {[%clk 00:19:14]} {[%emt 00:00:53]} Rdb7
{[%clk 00:33:27]} {[%emt 00:02:55]} 32. Ra3 {[%clk 00:19:09]} {[%emt 00:00:35]}
Rd7 {[%clk 00:33:12]} {[%emt 00:00:45]} 33. f4 {[%clk 00:18:17]} {[%emt
00:01:22]} Ra8 {[%clk 00:29:49]} {[%emt 00:03:53]} 34. b4 {[%clk 00:17:08]}
{[%emt 00:01:39]} a4 {[%clk 00:29:58]} {[%emt 00:00:21]} 35. b5 {[%clk
00:17:23]} {[%emt 00:00:15]} Rdd8 {[%clk 00:28:17]} {[%emt 00:02:11]} 36. b6
{[%clk 00:17:21]} {[%emt 00:00:31]} Ra5 {[%clk 00:24:59]} {[%emt 00:03:49]} 37.
Kc3 {[%clk 00:16:44]} {[%emt 00:01:07]} Rb5 {[%clk 00:24:09]} {[%emt 00:01:20]}
38. Rxa4 {[%clk 00:14:18]} {[%emt 00:02:56]} Rb1 {[%clk 00:22:35]} {[%emt
00:02:04]} 39. Rb4 {[%clk 00:13:52]} {[%emt 00:00:56]} Re1 {[%clk 00:21:04]}
{[%emt 00:02:01]} 40. Rb3 {[%clk 00:12:49]} {[%emt 00:01:33]} Ree8 {[%clk
00:19:20]} {[%emt 00:02:13]} 41. b7 {[%clk 00:11:45]} {[%emt 00:03:50]} 1-0

[Event "NJSK 2022 Meisjes C"]
[Site "Almelo, Netherlands"]
[Date "2022.05.05"]
[Round "5.5"]
[White "Fu, Janice"]
[Black "Van Apeldoorn, Vera"]
[Result "1-0"]
[TimeControl "90min/40moves + 30min + 30sec/move"]
[WhiteElo "1344"]
[BlackElo "1022"]

1. e4 {[%clk 01:30:57]} {[%emt 00:00:03]} e5 {[%clk 01:30:45]} {[%emt
00:00:14]} 2. Nf3 {[%clk 01:31:19]} {[%emt 00:00:08]} Nc6 {[%clk 01:30:57]}
{[%emt 00:00:18]} 3. Bc4 {[%clk 01:31:38]} {[%emt 00:00:11]} Nf6 {[%clk
01:31:03]} {[%emt 00:00:24]} 4. d3 {[%clk 01:31:56]} {[%emt 00:00:12]} Bc5
{[%clk 01:30:56]} {[%emt 00:00:37]} 5. Nc3 {[%clk 01:31:59]} {[%emt 00:00:27]}
O-O {[%clk 01:30:54]} {[%emt 00:00:32]} 6. Bg5 {[%clk 01:31:20]} {[%emt
00:01:09]} h6 {[%clk 01:31:02]} {[%emt 00:00:22]} 7. Bh4 {[%clk 01:31:34]}
{[%emt 00:00:15]} Be7 {[%clk 01:30:57]} {[%emt 00:00:36]} 8. O-O {[%clk
01:30:56]} {[%emt 00:01:08]} d6 {[%clk 01:30:18]} {[%emt 00:01:09]} 9. h3
{[%clk 01:30:33]} {[%emt 00:00:52]} Na5 {[%clk 01:29:32]} {[%emt 00:01:18]} 10.
Bb3 {[%clk 01:29:03]} {[%emt 00:01:59]} Nxb3 {[%clk 01:29:41]} {[%emt
00:00:20]} 11. axb3 {[%clk 01:29:25]} {[%emt 00:00:07]} Be6 {[%clk 01:28:33]}
{[%emt 00:01:40]} 12. d4 {[%clk 01:27:12]} {[%emt 00:02:42]} exd4 {[%clk
01:25:17]} {[%emt 00:03:47]} 13. Qxd4 {[%clk 01:21:12]} {[%emt 00:06:30]} Re8
{[%clk 01:21:24]} {[%emt 00:04:22]} 14. Rxa7 {[%clk 01:19:41]} {[%emt
00:02:01]} Rxa7 {[%clk 01:15:32]} {[%emt 00:06:23]} 15. Qxa7 {[%clk 01:20:01]}
{[%emt 00:00:09]} b6 {[%clk 01:14:06]} {[%emt 00:01:56]} 16. Re1 {[%clk
01:17:31]} {[%emt 00:03:00]} Qd7 {[%clk 01:09:18]} {[%emt 00:05:19]} 17. Bg3
{[%clk 01:14:08]} {[%emt 00:03:52]} Nh5 {[%clk 01:07:02]} {[%emt 00:02:46]} 18.
Bh2 {[%clk 01:12:54]} {[%emt 00:01:44]} Nf6 {[%clk 01:04:32]} {[%emt 00:03:01]}
19. e5 {[%clk 01:11:16]} {[%emt 00:02:08]} dxe5 {[%clk 01:02:42]} {[%emt
00:02:19]} 20. Nxe5 {[%clk 01:11:15]} {[%emt 00:00:32]} Qc8 {[%clk 01:01:00]}
{[%emt 00:02:12]} 21. Nc6 {[%clk 01:10:17]} {[%emt 00:01:28]} Bd6 {[%clk
00:53:22]} {[%emt 00:08:09]} 22. Bxd6 {[%clk 01:09:14]} {[%emt 00:01:32]} cxd6
{[%clk 00:52:52]} {[%emt 00:00:59]} 23. Ne7+ {[%emt 00:03:10]} Rxe7 {[%clk
00:51:04]} 24. Qxe7 {[%clk 01:09:11]} d5 {[%clk 00:49:02]} {[%emt 00:02:44]} 25.
Qd6 {[%clk 01:08:21]} {[%emt 00:01:19]} b5 {[%clk 00:46:34]} {[%emt 00:02:59]}
26. Qb6 {[%clk 01:06:37]} {[%emt 00:02:12]} Bd7 {[%clk 00:45:12]} {[%emt
00:01:54]} 27. Re2 {[%clk 01:05:53]} {[%emt 00:01:14]} Qc6 {[%clk 00:40:49]}
{[%emt 00:04:53]} 28. Qxc6 {[%clk 01:05:14]} {[%emt 00:01:08]} Bxc6 {[%clk
00:41:13]} {[%emt 00:00:07]} 29. Re7 {[%clk 01:04:55]} {[%emt 00:00:48]} Ne4
{[%clk 00:39:57]} {[%emt 00:01:47]} 30. Rc7 {[%clk 01:04:26]} {[%emt 00:00:59]}
Nxc3 {[%clk 00:39:53]} {[%emt 00:00:33]} 31. Rc8+ {[%clk 01:04:27]} {[%emt
00:00:29]} Kh7 {[%clk 00:40:14]} {[%emt 00:00:10]} 32. Rxc6 {[%clk 01:03:49]}
{[%emt 00:01:08]} Ne2+ {[%clk 00:39:14]} {[%emt 00:01:30]} 33. Kf1 {[%clk
01:03:45]} {[%emt 00:00:31]} Nd4 {[%clk 00:39:11]} {[%emt 00:00:35]} 34. Rc5
{[%clk 01:03:34]} {[%emt 00:00:41]} Kg6 {[%clk 00:37:49]} {[%emt 00:01:53]} 35.
c3 {[%clk 01:03:11]} {[%emt 00:00:53]} Nxb3 {[%clk 00:37:54]} {[%emt 00:00:25]}
36. Rxb5 {[%clk 01:03:31]} {[%emt 00:00:10]} Nd2+ {[%clk 00:38:13]} {[%emt
00:00:12]} 37. Ke1 {[%clk 01:03:26]} {[%emt 00:00:32]} Nc4 {[%clk 00:38:27]}
{[%emt 00:00:17]} 38. b3 {[%clk 01:03:26]} {[%emt 00:00:30]} Nd6 {[%clk
00:38:19]} {[%emt 00:00:38]} 39. Rxd5 {[%clk 01:03:45]} {[%emt 00:00:11]} Ne4
{[%clk 00:38:23]} {[%emt 00:00:25]} 40. c4 {[%clk 01:03:50]} {[%emt 00:00:26]}
Kf6 {[%clk 00:38:26]} {[%emt 00:00:28]} 41. f3 {[%clk 01:03:32]} {[%emt
00:00:47]} Ng5 {[%clk 00:38:28]} {[%emt 00:00:29]} 42. b4 {[%clk 01:03:31]}
{[%emt 00:00:31]} Ne6 {[%clk 00:38:21]} {[%emt 00:00:37]} 43. c5 {[%clk
01:03:14]} {[%emt 00:00:47]} Ke7 {[%clk 00:38:17]} {[%emt 00:00:35]} 44. c6
{[%clk 01:03:16]} {[%emt 00:00:27]} f6 {[%clk 00:38:12]} {[%emt 00:00:35]} 45.
b5 {[%clk 01:03:13]} {[%emt 00:00:33]} Nf4 {[%clk 00:37:51]} {[%emt 00:00:51]}
46. Rd7+ {[%clk 01:03:18]} {[%emt 00:00:24]} Ke6 {[%clk 00:38:05]} {[%emt
00:00:18]} 47. Kf2 {[%clk 01:03:35]} {[%emt 00:00:11]} Nd5 {[%clk 00:38:17]}
{[%emt 00:00:19]} 48. Rxd5 {[%clk 01:03:54]} {[%emt 00:00:11]} Kxd5 {[%clk
00:38:35]} {[%emt 00:00:13]} 49. c7 {[%clk 01:04:14]} {[%emt 00:00:09]} Kd4
{[%clk 00:38:47]} {[%emt 00:00:18]} 50. c8=Q {[%clk 01:04:37]} {[%emt
00:00:07]} g5 {[%clk 00:39:07]} {[%emt 00:00:10]} 51. b6 {[%clk 01:04:59]}
{[%emt 00:00:07]} g4 {[%clk 00:39:23]} {[%emt 00:00:15]} 52. b7 {[%clk
01:05:20]} {[%emt 00:00:09]} gxh3 {[%clk 00:39:47]} {[%emt 00:00:05]} 53. gxh3
{[%clk 01:05:40]} {[%emt 00:00:10]} h5 {[%clk 00:40:09]} {[%emt 00:00:09]} 54.
b8=R {[%clk 01:05:56]} {[%emt 00:00:14]} h4 {[%clk 00:40:27]} {[%emt 00:00:12]}
55. Qd7+ {[%clk 01:06:19]} {[%emt 00:00:07]} Ke5 {[%clk 00:40:46]} {[%emt
00:00:11]} 56. Re8+ {[%clk 01:06:39]} {[%emt 00:00:10]} Kf4 {[%clk 00:41:02]}
{[%emt 00:00:15]} 57. Qg4# {[%clk 01:06:34]} {[%emt 00:00:03]} 1-0